{"text_format":"1","workbook":"xlsx","n_sheets":1,"sheets":["Pressupost Projecte Bb"],"not_rendered":{"charts":0,"images":2,"macros":1,"external_links":0,"defined_names":6,"comments":1,"pivot_tables":0},"unopened":[],"bounds":{"document_bytes":16777216,"sheet_cells":100000,"rows_first":2000,"rows_last":500,"rows_between":2000,"halvings":0,"cell_chars":16384,"cell_head_chars":4096},"cells_cut":0,"cells_raw":0,"read":"whole","date_system":"1900"}

{"sheet":"Pressupost Projecte Bb","index":0,"n_rows":182,"n_cols":6,"rows_kept":182,"cut":false,"hidden":false,"merged":[[2,1,3,5],[163,2,163,3]]}
[null,null,null,null,null,"Document bàsic 3"]
[null,null,null,null,null,"Àmbit temàtic \"B\": Intercooperació"]
["Subvencions de l'Ajuntament de Barcelona per a","Modalitat \"b\": Intercooperació de 1r nivell: Projectes d’intercooperació promoguts per entitats i empreses de l’Economia Social i Solidària que contribueixin al desplegament de l’Estratègia BCN 2030 ESS."]
["la promoció i reforç de l'economia social i solidària 2020"]
[null,null,null,null,null,"Cal omplir les cel·les en blanc i si escau afegir les files necessàries"]
[null,null,null,null,null,"Abans d'omplir, consultar anotacions a peu de pàgina"]
[null,null,null,null,null," "]
["DADES BÀSIQUES"]
["Nom de la persona jurídica que lidera agrupació",null,null,null,null,"  "]
["NIF de la persona jurídica que lidera agrupació"]
["Nom del projecte subvencionable"]
["Import total del projecte subvencionable"]
["Import imputable a la subvenció municipal"]
["% de l’import sol·licitat a la subvenció municipal a bescanviar en REC (Recurs Econòmic Ciutadà) "]
["Import de l'aportació / Cofinançament de l'entitat",{"$f":"B12-B13","v":0}]
["% de l'import sol·licitat respecte el total del projecte subvencionable",{"$f":"B13/B12","v":{"$error":"#DIV/0!"}}]
["Data inici del projecte subvencionat (dd/mm/aaaa)"]
["Data fi del projecte subvencionat (dd/mm/aaaa)"]
[]
["PREVISIÓ DE DESPESES DEL PROJECTE SUBVENCIONABLE"]
[]
["Partides","Import total del projecte","Import imputable a la subvenció municipal","Import de l'aportació / Cofinançament de l'entitat"]
["D1.  Nòmines i seguretat social IRPF (règim general o règim d’autònoms) del personal propi  vinculat al projecte ",{"$f":"SUM(DespesesProjecte5[[#This Row],[Import imputable a la subvenció municipal]],DespesesProjecte5[[#This Row],[Import de l''aportació / Cofinançament de l''entitat]])","v":0},{"$f":"SUM(C24:C28)","v":0},{"$f":"SUM(D24:D28)","v":0}]
[]
[]
[]
[]
[]
["TOTAL DE DESPESES DEL PERSONAL (Max 50% de l'import imputable a la subvenció municipal)",{"$f":"SUM(B23)","v":0},{"$f":"SUM(C23)","v":0},{"$f":"SUM(D23)","v":0}]
["D2.  Treballs realitzats per professionals i empreses externes directament vinculades al projecte",{"$f":"SUM(DespesesProjecte5[[#This Row],[Import imputable a la subvenció municipal]],DespesesProjecte5[[#This Row],[Import de l''aportació / Cofinançament de l''entitat]])","v":0},{"$f":"SUM(C31:C35)","v":0},{"$f":"SUM(D31:D35)","v":0}]
[]
[]
[]
[]
[]
["D3. Lloguer de bens mobles/immobles directament vinculats al projecte",{"$f":"SUM(DespesesProjecte5[[#This Row],[Import imputable a la subvenció municipal]],DespesesProjecte5[[#This Row],[Import de l''aportació / Cofinançament de l''entitat]])","v":0},{"$f":"SUM(C37:C41)","v":0},{"$f":"SUM(D37:D41)","v":0}]
[]
[]
[]
[]
[]
["D4. Adquisició de materials i béns consumibles íntegrament imputables al projecte",{"$f":"SUM(DespesesProjecte5[[#This Row],[Import imputable a la subvenció municipal]],DespesesProjecte5[[#This Row],[Import de l''aportació / Cofinançament de l''entitat]])","v":0},{"$f":"SUM(C43:C47)","v":0},{"$f":"SUM(D43:D47)","v":0}]
[]
[]
[]
[]
[]
["D5. Transport – missatgeria imputables al projecte",{"$f":"SUM(DespesesProjecte5[[#This Row],[Import imputable a la subvenció municipal]],DespesesProjecte5[[#This Row],[Import de l''aportació / Cofinançament de l''entitat]])","v":0},{"$f":"SUM(C49:C53)","v":0},{"$f":"SUM(D49:D53)","v":0}]
[]
[]
[]
[]
[]
["D6. Publicitat i propaganda de les activitats directament vinculades al projecte",{"$f":"SUM(DespesesProjecte5[[#This Row],[Import imputable a la subvenció municipal]],DespesesProjecte5[[#This Row],[Import de l''aportació / Cofinançament de l''entitat]])","v":0},{"$f":"SUM(C55:C59)","v":0},{"$f":"SUM(D55:D59)","v":0}]
[]
[]
[]
[]
[]
["D7.  Allotjament i dietes, del personal contractat i voluntaris",{"$f":"SUM(DespesesProjecte5[[#This Row],[Import imputable a la subvenció municipal]],DespesesProjecte5[[#This Row],[Import de l''aportació / Cofinançament de l''entitat]])","v":0},{"$f":"SUM(C61:C65)","v":0},{"$f":"SUM(D61:D65)","v":0}]
[]
[]
[]
[]
[]
["D8.  Ajuts al transport per als/les participants dels projectes en cas que sigui necessari de manera justificada",{"$f":"SUM(DespesesProjecte5[[#This Row],[Import imputable a la subvenció municipal]],DespesesProjecte5[[#This Row],[Import de l''aportació / Cofinançament de l''entitat]])","v":0},{"$f":"SUM(C67:C71)","v":0},{"$f":"SUM(D67:D71)","v":0}]
[]
[]
[]
[]
[]
["D9.  Viatges i desplaçaments imputables a les activitats del projecte",{"$f":"SUM(DespesesProjecte5[[#This Row],[Import imputable a la subvenció municipal]],DespesesProjecte5[[#This Row],[Import de l''aportació / Cofinançament de l''entitat]])","v":0},{"$f":"SUM(C73:C77)","v":0},{"$f":"SUM(D73:D77)","v":0}]
[]
[]
[]
[]
[]
["D10. Tributs, quan siguin abonats directament per la persona jurídica o física beneficiària",{"$f":"SUM(DespesesProjecte5[[#This Row],[Import imputable a la subvenció municipal]],DespesesProjecte5[[#This Row],[Import de l''aportació / Cofinançament de l''entitat]])","v":0},{"$f":"SUM(C79:C83)","v":0},{"$f":"SUM(D79:D83)","v":0}]
[]
[]
[]
[]
[]
["D11.  Altres despeses que de manera justificada i per la tipologia del projecte puguin imputar-se directament al projecte",{"$f":"SUM(DespesesProjecte5[[#This Row],[Import imputable a la subvenció municipal]],DespesesProjecte5[[#This Row],[Import de l''aportació / Cofinançament de l''entitat]])","v":0},{"$f":"SUM(C85:C89)","v":0},{"$f":"SUM(D85:D89)","v":0}]
[]
[]
[]
[]
[]
["D12. Aportacions a fons de contigencia ",{"$f":"SUM(DespesesProjecte5[[#This Row],[Import imputable a la subvenció municipal]],DespesesProjecte5[[#This Row],[Import de l''aportació / Cofinançament de l''entitat]])","v":0},{"$f":"SUM(C91:C95)","v":0},{"$f":"SUM(D91:D95)","v":0}]
[]
[]
[]
[]
[]
["TOTAL D'ALTRES DESPESES DIRECTES ",{"$f":"SUM(B30,B36,B42,B48,B54,B60,B66,B72,B78,B84,B90)","v":0},{"$f":"SUM(C30,C36,C42,C48,C54,C60,C66,C72,C78,C84,C90)","v":0},{"$f":"SUM(D30,D36,D42,D48,D54,D60,D66,D72,D78,D84,D90)","v":0}]
["TOTAL DESPESES DIRECTES (aquelles que s’identifiquen directament amb el projecte)",{"$f":"SUM(B29,B96)","v":0},{"$f":"SUM(C29,C96)","v":0},{"$f":"SUM(D29,,D96)","v":0}]
["I1.  Personal de suport al projecte (nòmines i seguretat social)",{"$f":"SUM(DespesesProjecte5[[#This Row],[Import imputable a la subvenció municipal]],DespesesProjecte5[[#This Row],[Import de l''aportació / Cofinançament de l''entitat]])","v":0},{"$f":"SUM(C99:C103)","v":0},{"$f":"SUM(D99:D103)","v":0}]
[]
[]
[]
[]
[]
["I2.  Assegurances",{"$f":"SUM(DespesesProjecte5[[#This Row],[Import imputable a la subvenció municipal]],DespesesProjecte5[[#This Row],[Import de l''aportació / Cofinançament de l''entitat]])","v":0},{"$f":"SUM(C105:C109)","v":0},{"$f":"SUM(D105:D109)","v":0}]
[]
[]
[]
[]
[]
["I3.  Amortització",{"$f":"SUM(DespesesProjecte5[[#This Row],[Import imputable a la subvenció municipal]],DespesesProjecte5[[#This Row],[Import de l''aportació / Cofinançament de l''entitat]])","v":0},{"$f":"SUM(C111:C115)","v":0},{"$f":"SUM(D111:D115)","v":0}]
[]
[]
[]
[]
[]
["I4.  Lloguer de béns immobles",{"$f":"SUM(DespesesProjecte5[[#This Row],[Import imputable a la subvenció municipal]],DespesesProjecte5[[#This Row],[Import de l''aportació / Cofinançament de l''entitat]])","v":0},{"$f":"SUM(C117:C121)","v":0},{"$f":"SUM(D117:D121)","v":0}]
[]
[]
[]
[]
[]
["I5.  Adquisició de materials i béns consumibles parcialment imputables al projecte",{"$f":"SUM(DespesesProjecte5[[#This Row],[Import imputable a la subvenció municipal]],DespesesProjecte5[[#This Row],[Import de l''aportació / Cofinançament de l''entitat]])","v":0},{"$f":"SUM(C123:C127)","v":0},{"$f":"SUM(D123:D127)","v":0}]
[]
[]
[]
[]
[]
["I6.  Manteniment d’edificis i/o instal•lacions",{"$f":"SUM(DespesesProjecte5[[#This Row],[Import imputable a la subvenció municipal]],DespesesProjecte5[[#This Row],[Import de l''aportació / Cofinançament de l''entitat]])","v":0},{"$f":"SUM(C129:C133)","v":0},{"$f":"SUM(D129:D133)","v":0}]
[]
[]
[]
[]
[]
["I7.  Comunicacions (telèfon, correus, connexió a internet)",{"$f":"SUM(DespesesProjecte5[[#This Row],[Import imputable a la subvenció municipal]],DespesesProjecte5[[#This Row],[Import de l''aportació / Cofinançament de l''entitat]])","v":0},{"$f":"SUM(C135:C139)","v":0},{"$f":"SUM(D135:D139)","v":0}]
[]
[]
[]
[]
[]
["I8.  Despeses financeres",{"$f":"SUM(DespesesProjecte5[[#This Row],[Import imputable a la subvenció municipal]],DespesesProjecte5[[#This Row],[Import de l''aportació / Cofinançament de l''entitat]])","v":0},{"$f":"SUM(C141:C145)","v":0},{"$f":"SUM(D141:D145)","v":0}]
[]
[]
[]
[]
[]
["I9.  Subministraments ",{"$f":"SUM(DespesesProjecte5[[#This Row],[Import imputable a la subvenció municipal]],DespesesProjecte5[[#This Row],[Import de l''aportació / Cofinançament de l''entitat]])","v":0},{"$f":"SUM(C147:C151)","v":0},{"$f":"SUM(D147:D151)","v":0}]
[]
[]
[]
[]
[]
["I10.  Treball realitzat per altres empreses, parcialment imputables al projecte (neteja, seguretat...)",{"$f":"SUM(DespesesProjecte5[[#This Row],[Import imputable a la subvenció municipal]],DespesesProjecte5[[#This Row],[Import de l''aportació / Cofinançament de l''entitat]])","v":0},{"$f":"SUM(C153:C157)","v":0},{"$f":"SUM(D153:D157)","v":0}]
[]
[]
[]
[]
[]
["TOTAL DESPESES INDIRECTES (es podran assignar al projecte fent sevir un percentatge d’assignació) - Màxim 10% de l’import imputable a la subvenció municipal",{"$f":"SUM(B98,B104,B110,B116,B122,B128,B134,B140,B146,B152)","v":0},{"$f":"SUM(C98,C104,C110,C116,C122,C128,C134,C140,C146,C152)","v":0},{"$f":"SUM(D98,D104,D110,D116,D122,D128,D134,D140,D146,D152)","v":0}]
["TOTAL DE DESPESES PREVISTES",{"$f":"SUM(B158,B97)","v":0},{"$f":"SUM(C158,C97)","v":0},{"$f":"SUM(D158,D97)","v":0}]
[]
[]
["Barcelona, "]
[]
["Segell de l'entitat ",null,"Signatura del President/a o persona que disposa de poders o autorització per fer-ho."]
[]
["1.  La quantia de la subvenció atorgada no superarà el 80% de la despesa total del projecte a subvencionar. "]
["2.  L'import màxim de subvenció per a la modalitat \"b\" de l’Intercooperació (Bb) és 18.000€."]
["3.  En el cas que la sol·licitud presentada sobrepassi l’import màxim, es considerarà com a import sol·licitat el màxim de l'establert a la convocatòria."]
["4.  Es limita amb un màxim del 50% l’import de la subvenció per a despeses de personal propi que participa de forma directa i degudament al projecte."]
["5.  La suma de personal propi assignat al projecte (de l’entitat sol·licitant i participants de l’acord cooperació) no podrà superar el 50% de l’import de la subvenció. "]
["6.  El caràcter subvencionable de la despesa d'amortització estarà subjecte a les condicions següents:"]
["- Que les subvencions no hagin contribuït a la compra dels béns."]
["- Que l'amortització es calculi de conformitat amb les normes de comptabilitat generalment acceptades."]
["- Que el cost es refereixi al període subvencionable."]
["7.  En cap cas es consideraran despeses subvencionables:"]
["- Els impostos indirectes quan siguin susceptibles de recuperació o compensació, ni els impostos sobre la renda."]
["- Les despeses d'inversió, incloses les adquisicions de béns mobles."]
["- Les despeses realitzades amb data anterior a l'inici del projecte i data posterior a la finalització del projecte."]
["8.  Caldrà acompanyar a la sol·licitud de subvenció un certificat de participació en l’acord de cooperació signat pels representants legals de l’entitat."]
["9.  No seran elegibles factures d’empreses emeses entre les entitats participants de l’acord cooperació."]
["10.  Quan s'hagi de fer despeses de més de 12.000 €, sense IVA, en el cas de prestacions de serveis o lliurament de béns"]
["        hauran d'incorporar tres pressupostos sol·licitats i argumentar el motiu de l'adjudicació en el cas de no ser la proposta més avantatjosa econòmicament."]